bitfinex/quotes_ETHUSD_20250424
["timestamp","ask_amount","ask_price","bid_price","bid_amount"]
[1745479824020,6.48251665,1762.3,1761.9,0.74339582]
[1745479824222,0.8081,1762.3,1761.9,5.67549304]
[1745479824460,0.8081,1762.3,1762.0,5.67529532]
[1745479824766,6.44358545,1762.5,1762.1,6.42593186]
[1745479824960,0.7698,1762.5,1762.0,6.8846566]
[1745479825165,6.44368574,1762.5,1762.1,5.6750024]
[1745479825339,5.67388574,1762.5,1762.1,5.6750024]
[1745479826068,5.67361059,1762.6,1762.1,6.41822273]
[1745479826365,9.97207318,1762.7,1762.2,6.49266124]
[1745479826760,15.6453103,1762.7,1762.2,6.49266124]
[1745479826933,15.6453103,1762.7,1762.2,0.8182]
[1745479827139,5.67396147,1762.5,1762.2,0.8182]
[1745479827453,5.67358546,1762.6,1762.2,0.8182]
[1745479827770,5.371,1762.7,1762.2,1.5418487]
[1745479827958,3.79057318,1762.8,1762.5,0.74339582]
[1745479828265,5.67319107,1762.7,1762.3,0.74339582]
[1745479828572,5.67324825,1762.7,1762.2,0.8182]
[1745479828747,5.67362733,1762.6,1762.2,6.49281312]
[1745479829265,5.67325475,1762.7,1762.2,12.16738005]
[1745479829446,0.56732547,1762.6,1762.2,6.49278772]
[1745479829848,5.67378893,1762.5,1762.2,0.8182]
[1745479830245,7.06298597,1762.6,1762.2,0.80490242]
[1745479831068,7.06298597,1762.6,1762.2,6.47959724]
[1745479832194,5.67375892,1762.5,1761.9,5.67545886]
[1745479832338,6.24151869,1762.4,1761.8,6.11439582]
[1745479832642,11.86683385,1762.6,1762.1,5.67478061]
[1745479832844,6.1932,1762.6,1762.2,5.67471951]
[1745479833155,11.86684288,1762.6,1762.1,5.67478061]
[1745479833357,12.48616288,1762.6,1762.1,6.44218061]
[1745479833893,5.67379672,1762.5,1762.1,0.7674]
[1745479834381,13.26245045,1762.8,1762.1,6.44229107]
[1745479834564,12.3705752,1762.7,1762.2,5.67455506]
[1745479834749,12.68590831,1762.7,1762.3,5.67429985]
[1745479834939,7.01257815,1762.7,1762.1,1.48596869]
[1745479835141,7.01257815,1762.7,1762.2,5.67472477]
[1745479835457,5.67386639,1762.5,1762.1,6.44243988]
[1745479835668,6.37482624,1762.6,1762.1,6.44243988]
[1745479836448,12.04852517,1762.6,1762.1,6.44243988]
[1745479837090,6.37482624,1762.6,1762.1,6.44243988]
[1745479838580,6.37482624,1762.6,1762.1,6.44223783]
[1745479838791,6.37482624,1762.6,1762.2,5.67472374]
[1745479839085,0.70125782,1762.6,1762.2,5.67472374]
[1745479839291,6.37471962,1762.6,1762.2,5.67472374]
[1745479839585,0.70125782,1762.6,1762.3,5.67439394]
[1745479839794,5.371,1762.7,1762.3,5.67421867]
[1745479840084,5.371,1762.7,1762.3,11.34839235]
[1745479840264,5.371,1762.7,1762.3,5.67419291]
[1745479840465,11.04412661,1762.7,1762.3,5.67419291]
[1745479840791,10.26235692,1762.8,1762.4,6.44626964]
[1745479841310,4.58947318,1762.8,1762.4,6.44626964]
[1745479841589,10.26238882,1762.8,1762.4,6.44609539]
[1745479841790,6.47181564,1762.8,1762.4,0.7722]
[1745479842316,11.34664609,1762.7,1762.2,7.23125536]
[1745479842450,5.67349858,1762.6,1762.2,7.23125536]
[1745479842880,5.67349858,1762.6,1762.2,1.55669582]
[1745479843088,5.67349858,1762.6,1762.2,7.23131561]
[1745479843772,5.67349858,1762.6,1762.2,6.48791979]
[1745479845193,6.88779986,1762.7,1762.2,6.48791979]
[1745479845352,6.88779986,1762.7,1762.3,5.67422557]
[1745479845353,1.21455461,1762.7,1762.3,5.67422557]
[1745479845548,6.88767648,1762.7,1762.3,5.67422557]
[1745479845855,1.21455461,1762.7,1762.4,5.67401962]
[1745479846062,10.26227473,1762.8,1762.3,5.67437901]
[1745479846262,10.26227473,1762.8,1762.2,1.55669582]
[1745479846466,10.26227473,1762.8,1762.3,5.67424495]
[1745479846689,5.67312888,1762.7,1762.3,5.67424495]
[1745479847092,15.93534126,1762.8,1762.3,5.67419158]
[1745479847264,12.15582598,1762.8,1762.3,5.67419158]
[1745479847464,5.67322174,1762.7,1762.3,5.67419158]
[1745479847665,5.67322174,1762.7,1762.2,12.90577406]
[1745479847865,5.67322174,1762.7,1762.2,7.23120258]
[1745479848490,5.67345612,1762.6,1762.2,7.23120258]
[1745479848689,5.67345612,1762.6,1762.2,8.52181151]
[1745479848964,6.45266787,1762.5,1762.1,5.67500374]
[1745479849298,6.45266787,1762.5,1762.0,7.23872047]
[1745479849470,6.45266787,1762.5,1762.1,5.67498156]
[1745479851799,6.45266787,1762.5,1762.0,7.23874021]
[1745479852000,6.45264964,1762.5,1762.0,0.8202]
[1745479852169,0.8122,1762.2,1761.8,0.7672]
[1745479852367,6.48693746,1762.2,1761.8,0.7672]
[1745479852567,6.48693746,1762.2,1761.8,6.44309866]
[1745479854105,0.8122,1762.2,1761.8,7.18649448]
[1745479854506,12.16193439,1762.2,1761.8,0.7672]
[1745479854973,6.48693111,1762.2,1761.8,0.7672]
[1745479855576,2.02835199,1762.2,1761.7,5.67612621]
[1745479855905,5.67510211,1762.1,1761.7,5.67612621]
[1745479856109,6.48716069,1762.2,1761.7,11.35224792]
[1745479856308,6.48716069,1762.2,1761.8,5.67595571]
[1745479856507,6.48716069,1762.2,1761.7,5.67612353]
[1745479856806,7.70333354,1762.2,1761.7,5.67612353]
[1745479857521,5.67505917,1762.1,1761.6,7.24142411]
[1745479857690,7.70324839,1762.2,1761.8,5.67589545]
[1745479858090,2.02837285,1762.2,1761.6,1.56499582]
[1745479858290,7.70311428,1762.2,1761.8,5.67580293]
[1745479858587,0.8122,1762.2,1761.6,2.58918565]
[1745479858788,5.67523288,1762.1,1761.6,7.24139891]
[1745479859134,5.67794685,1761.2,1760.7,0.8062]
[1745479859289,5.67936328,1760.8,1760.6,0.00743981]
[1745479859490,5.67955926,1760.7,1760.6,0.00743981]
[1745479859937,0.8131,1760.8,1760.6,0.00743981]
[1745479860094,6.49862495,1761.0,1760.6,0.00743981]
[1745479860290,2.33760082,1761.0,1760.6,0.00743981]
[1745479860491,5.67955926,1760.7,1760.6,0.00743981]
[1745479860721,10.92843451,1760.8,1760.6,0.00743981]
[1745479860905,16.60797616,1760.8,1760.6,0.00743981]
[1745479861117,5.249,1760.9,1760.6,0.00743981]
[1745479861323,10.9279531,1760.9,1760.6,0.00743981]
[1745479862523,5.67928817,1760.8,1760.6,0.00743981]
[1745479862935,12.97074956,1760.9,1760.6,0.00743981]
[1745479863414,18.64995333,1760.9,1760.6,0.00743981]
[1745479863617,5.67936157,1760.8,1760.6,0.00743981]
[1745479863817,11.35887823,1760.8,1760.6,0.00743981]
[1745479864029,7.54441439,1760.8,1760.6,0.00743981]
[1745479864346,5.67955926,1760.7,1760.6,0.00743981]
[1745479864548,7.54440843,1760.8,1760.6,0.00743981]
[1745479864758,5.67955926,1760.7,1760.6,0.00743981]
[1745479864926,6.48895926,1760.7,1760.6,0.00743981]
[1745479865121,7.89229603,1760.7,1760.6,0.00743981]
[1745479865524,2.21273677,1760.7,1760.6,0.00743981]
[1745479865729,13.14429603,1760.7,1760.6,0.00743981]
[1745479865926,7.89229603,1760.7,1760.6,0.00743981]
[1745479866151,13.14429603,1760.7,1760.6,0.00743981]
[1745479866728,13.14429603,1760.7,1760.0,0.005]
[1745479866729,6.46016778,1760.2,1760.0,0.005]
[1745479866929,6.46016778,1760.2,1759.9,1e-08]
[1745479866930,6.46051818,1760.0,1759.9,1e-08]
[1745479867139,9.46051818,1760.0,1759.9,1e-08]
[1745479868043,9.45540979,1759.6,1759.5,0.4037869]
[1745479868241,14.70840979,1759.6,1759.5,0.4037869]
[1745479868641,0.7723,1759.6,1759.5,0.4037869]
[1745479869430,7.62623516,1759.6,1759.5,0.4037869]
[1745479870260,7.62623516,1759.6,1759.1,0.27927686]
[1745479870261,0.7542,1759.2,1759.1,0.27927686]
[1745479870830,5.349,1759.3,1759.1,0.27927686]
[1745479871029,0.8297,1759.4,1759.1,5.96398314]
[1745479871030,6.1807,1759.4,1759.1,5.96398314]
[1745479871263,6.1807,1759.4,1759.1,0.27927686]
[1745479871447,12.48267707,1759.4,1759.1,0.27927686]
[1745479871647,1.44777,1759.4,1759.1,0.27927686]
[1745479871962,6.1807,1759.4,1759.1,0.27927686]
[1745479872724,0.8297,1759.4,1759.1,5.96399949]
[1745479872925,5.351,1759.6,1759.3,5.68384342]
[1745479873365,0.8031,1760.0,1759.4,0.74339582]
[1745479873661,5.351,1760.1,1759.9,0.74339582]
[1745479874161,5.351,1760.1,1759.8,5.68220372]
[1745479874528,5.351,1760.1,1759.8,11.36441924]
[1745479874763,5.351,1760.1,1759.9,0.74339582]
[1745479874964,5.351,1760.1,1760.0,5.68181818]
[1745479875960,5.351,1760.1,1759.9,5.68194737]
[1745479876167,5.8861,1760.1,1759.7,5.68276229]
[1745479876470,5.8861,1760.1,1759.6,3.7594]
[1745479876471,0.8246,1759.8,1759.3,6.44345941]
[1745479876644,0.8246,1759.8,1759.4,5.68356817]
[1745479877171,6.7107,1760.1,1759.7,5.68272404]
[1745479877330,5.351,1760.1,1759.7,3.68017078]
[1745479877532,5.351,1760.1,1759.9,5.68182469]
[1745479877968,5.351,1760.1,1759.8,6.43492876]
[1745479878271,5.351,1760.1,1759.9,5.68208359]
[1745479878739,5.351,1760.1,1760.0,5.68181818]
[1745479878940,6.1661,1760.7,1760.1,5.68149536]
[1745479879134,5.352,1760.7,1760.4,5.68035735]
[1745479879341,5.352,1760.7,1760.3,5.68060492]
[1745479879540,6.45513816,1760.7,1760.3,5.68060492]
[1745479879762,6.45513816,1760.7,1760.4,5.68049238]
[1745479879939,5.352,1760.7,1760.3,5.6806419]
[1745479880438,5.352,1760.7,1760.3,5.68063537]
[1745479880636,5.352,1760.7,1760.4,5.6805135]
[1745479881064,5.352,1760.7,1760.4,5.68033891]
[1745479881449,5.352,1760.7,1760.4,5.68028109]
[1745479882084,5.8872,1760.7,1760.3,5.68065571]
[1745479882450,5.68003599,1760.6,1760.1,5.68128126]
[1745479882771,5.68011857,1760.6,1760.1,11.36254142]
[1745479882976,5.68011857,1760.6,1760.1,5.68125085]
[1745479883180,5.680229,1760.5,1759.9,6.44920285]
[1745479883471,5.68075646,1760.4,1759.9,5.68190285]
[1745479883968,1.92381435,1760.5,1759.8,5.68235777]
[1745479884155,5.68068094,1760.4,1759.9,5.68208287]
[1745479884478,5.6805314,1760.4,1759.9,5.68193166]
[1745479884645,5.68093904,1760.3,1759.8,5.68228001]
[1745479884858,1.13614704,1760.3,1759.9,5.6819866]
[1745479885063,5.6805314,1760.4,1759.9,5.6819866]
[1745479885267,5.68086254,1760.3,1759.9,5.6819866]
[1745479885466,5.68086254,1760.3,1759.8,5.68225008]
[1745479885651,5.351,1760.3,1759.8,5.68221712]
[1745479885842,5.351,1760.3,1759.9,5.68202491]
[1745479886038,12.13503241,1760.3,1759.9,5.68202491]
[1745479886262,5.68118764,1760.2,1759.6,5.68297142]
[1745479886468,5.68181818,1760.0,1759.5,5.68321612]
[1745479886636,6.32611,1760.0,1759.5,5.68321612]
[1745479886848,0.64429182,1760.0,1759.7,5.68278504]
[1745479887055,0.64429182,1760.0,1759.6,5.68288617]
[1745479887578,0.7611,1760.1,1759.7,5.68258682]
[1745479887747,0.7611,1760.1,1759.8,5.68234214]
[1745479887952,0.7611,1760.1,1759.7,5.68260802]
[1745479888152,0.7611,1760.1,1759.7,5.68255577]
[1745479888353,0.7611,1760.1,1759.8,5.68227025]
[1745479888850,0.7611,1760.1,1759.8,5.68227287]
[1745479889897,6.1573,1760.7,1760.5,5.68009337]
[1745479890086,5.351,1760.7,1760.5,5.68009337]
[1745479890266,5.351,1760.7,1760.5,5.68005861]
[1745479890578,11.80404696,1761.2,1760.7,5.67933279]
[1745479890743,6.50515732,1761.2,1760.6,9.36004042]
[1745479890943,6.50515732,1761.2,1760.9,5.67875946]
[1745479891257,6.50515732,1761.2,1760.8,5.67902876]
[1745479891577,0.65051573,1761.1,1760.5,5.68008638]
[1745479891883,5.67874116,1761.0,1760.5,5.68008638]
[1745479892050,5.67874116,1761.0,1760.5,5.67998722]
[1745479892250,6.43070985,1760.6,1760.1,5.68123892]
[1745479892457,6.43070985,1760.6,1760.3,5.68084979]
[1745479892458,0.7508,1760.6,1760.3,5.68084979]
[1745479893001,5.351,1760.8,1760.3,5.68070316]
[1745479893286,5.351,1760.8,1760.4,5.68043133]
[1745479893496,0.7727,1760.9,1760.7,5.67930961]
[1745479893791,12.44348378,1761.1,1760.6,5.67971061]
[1745479893993,12.44348378,1761.1,1760.5,5.68007605]
[1745479893994,1.24434838,1761.0,1760.4,0.7672]
[1745479894194,1.24434838,1761.0,1760.5,5.67991313]
[1745479894374,5.67891942,1760.9,1760.4,6.44754818]
[1745479894746,5.67946477,1760.8,1760.3,5.68070715]
[1745479895494,6.92305003,1761.0,1760.4,5.68048157]
[1745479895695,0.692305,1760.9,1760.4,5.6803011]
[1745479896001,5.67972561,1760.7,1760.2,6.50055987]
[1745479896209,0.7575,1760.8,1760.2,6.50055987]
[1745479896414,0.7575,1760.8,1760.3,5.68084218]
[1745479896774,6.43696346,1760.8,1760.3,5.68084218]
[1745479896981,6.43696346,1760.8,1760.2,6.50055987]
[1745479896982,0.64369635,1760.7,1760.1,5.351]
[1745479897279,5.67956466,1760.7,1760.2,5.68096296]
[1745479898705,5.67956466,1760.7,1760.2,5.68092802]
[1745479899109,6.43691085,1760.8,1760.2,5.68092802]
[1745479899317,6.43691085,1760.8,1760.3,5.68078736]
[1745479899517,12.11642937,1760.8,1760.3,5.68078736]
[1745479899718,1.21164294,1760.7,1760.3,5.68078736]
[1745479900119,6.89120818,1760.7,1760.2,5.6809428]
[1745479900493,6.89120818,1760.7,1759.9,10.16057372]
[1745479900494,5.68037552,1760.5,1760.0,5.68160452]
[1745479900694,0.7693,1760.3,1759.9,5.68194886]
[1745479900899,6.45037892,1760.3,1759.9,5.68208892]
[1745479901207,1.98240732,1760.3,1759.9,5.68192589]
[1745479902462,1.98240732,1760.3,1759.8,5.68246391]
[1745479902637,6.1792,1760.5,1760.2,5.68117259]
[1745479902798,6.1792,1760.5,1760.1,5.68130858]
[1745479903329,6.1792,1760.5,1760.2,5.68111456]
[1745479903538,1.21164294,1760.7,1760.3,5.68080658]
[1745479903704,5.353,1760.7,1760.5,5.68006659]
[1745479904041,5.353,1760.7,1760.6,5.67976925]
[1745479904902,9.83587818,1760.9,1760.6,5.67976925]
[1745479905116,9.83587818,1760.9,1760.5,5.67997936]
[1745479905443,9.83587818,1760.9,1760.6,5.67975814]
[1745479905643,15.51483376,1760.9,1760.5,5.67996148]
[1745479905943,9.83587818,1760.9,1760.5,5.67996148]
[1745479906094,9.83587818,1760.9,1760.8,5.67923671]
[1745479906095,3.79057318,1760.9,1760.8,5.67923671]
[1745479906747,3.79057318,1760.9,1760.7,6.46309204]
[1745479907048,3.79057318,1760.9,1760.6,5.67974771]
[1745479907351,3.79057318,1760.9,1760.6,11.35938823]
[1745479907551,3.79057318,1760.9,1760.7,5.67955472]
[1745479907738,3.79057318,1760.9,1760.6,5.67971567]
[1745479908136,0.37905732,1760.9,1760.6,5.67971567]
[1745479908538,5.67840896,1761.1,1760.5,5.68000638]
[1745479908851,5.67840896,1761.1,1760.4,6.45056228]
[1745479908852,5.67941412,1760.8,1760.4,6.45069585]
[1745479909052,5.67918636,1760.9,1760.4,5.68049585]
[1745479909053,5.67907954,1760.9,1760.4,5.68049585]
[1745479909230,5.352,1760.8,1760.4,5.68049585]
[1745479909972,5.352,1760.8,1760.4,5.68032015]
[1745479910141,6.45510795,1760.8,1760.6,5.6798472]
[1745479910449,5.352,1760.8,1760.3,9.36100866]
[1745479910653,5.352,1760.8,1760.6,5.67964668]
[1745479912153,5.352,1760.8,1760.7,5.67955926]
[1745479912533,5.352,1760.8,1760.6,5.67966297]
[1745479912925,5.352,1760.8,1760.6,5.67963491]
[1745479913234,5.352,1760.8,1760.7,5.67955926]
[1745479913630,6.1719,1761.1,1760.8,5.67911619]
[1745479913834,0.61719,1761.0,1760.8,5.67903249]
[1745479914625,0.61719,1761.0,1760.7,11.35889067]
[1745479914835,6.1719,1761.1,1760.6,5.67977975]
[1745479915038,11.85029375,1761.1,1760.5,5.68020028]
[1745479915239,5.67882849,1761.0,1760.5,5.68001793]
[1745479915438,5.67882849,1761.0,1760.6,5.67987091]
[1745479915661,0.56788285,1760.9,1760.6,5.67987091]
[1745479916666,0.56788285,1760.9,1760.6,5.67962224]
[1745479916867,11.85034966,1761.1,1760.7,5.6794516]
[1745479917430,6.1719,1761.1,1760.7,11.35877873]
[1745479917629,6.1719,1761.1,1760.7,5.67932713]
[1745479918162,11.85027079,1761.1,1760.7,5.67932713]
[1745479918766,11.85027079,1761.1,1760.6,5.67975008]
[1745479918967,1.18502708,1761.0,1760.6,5.67975008]
[1745479919266,1.18502708,1761.0,1760.6,5.67965485]
[1745479919430,1.18502708,1761.0,1760.7,5.67953409]
[1745479919629,1.18502708,1761.0,1760.7,11.3589016]
[1745479919842,6.1719,1761.1,1760.6,5.67988185]
[1745479920066,6.1719,1761.1,1760.9,5.67878848]
[1745479920267,0.8207,1761.3,1760.8,6.4540896]
[1745479920435,9.14257318,1761.5,1761.2,5.67794685]
[1745479920766,3.79057318,1761.5,1761.4,5.67730214]
[1745479921151,0.8207,1761.8,1761.6,5.67656781]
[1745479921354,10.27974514,1761.9,1761.7,5.67617469]
[1745479921355,4.92774514,1761.9,1761.7,5.67617469]
[1745479921567,4.92774514,1761.9,1761.6,5.67646805]
[1745479921868,4.92774514,1761.9,1761.7,5.67631514]
[1745479922084,4.92774514,1761.9,1761.7,5.67616491]
[1745479922248,4.92774514,1761.9,1761.6,5.6765149]
[1745479922457,4.92774514,1761.9,1761.7,11.35230469]
[1745479922657,4.92774514,1761.9,1761.8,5.67601316]
[1745479923349,4.92774514,1761.9,1761.8,7.17924304]
[1745479923552,18.739,1762.4,1761.9,5.67569101]
[1745479923754,4.54989797,1762.5,1762.2,5.67446626]
[1745479923994,3.76279797,1762.5,1762.3,5.67421769]
[1745479924340,3.76279797,1762.5,1762.3,11.34839243]
[1745479924587,3.76279797,1762.5,1762.3,5.67417474]
[1745479925042,3.76279797,1762.5,1762.4,5.67408079]
[1745479925688,3.76279797,1762.5,1762.4,6.80890634]
[1745479925988,3.76279797,1762.5,1762.4,7.60140634]
[1745479926196,3.76279797,1762.5,1762.4,10.60140634]
[1745479930473,0.8216,1762.7,1762.5,5.67363793]
[1745479930648,5.332,1762.8,1762.3,6.24179638]
[1745479930847,0.7696,1762.9,1762.7,5.67286756]
[1745479931072,18.727,1763.2,1762.7,5.67286756]
[1745479931073,5.332,1763.1,1762.7,5.67286756]
[1745479931676,5.332,1763.1,1762.8,5.67260702]
[1745479931846,0.812,1763.9,1762.8,4.81471824]
[1745479932046,6.48268705,1763.5,1763.0,5.67194212]
[1745479932385,6.48254165,1763.5,1763.0,5.67197003]
[1745479933090,6.144,1763.5,1763.1,5.67169694]
[1745479934116,6.144,1763.5,1763.0,5.67201753]
[1745479934117,6.144,1763.5,1763.0,5.67203191]
[1745479934290,11.81475075,1763.5,1763.0,5.67203191]
[1745479934491,13.56326543,1763.5,1763.0,5.67203191]
[1745479934976,13.56326543,1763.5,1763.0,5.67194994]
[1745479935182,13.56326543,1763.5,1763.0,11.34388924]
[1745479935384,7.89251468,1763.5,1763.1,5.67175859]
[1745479935586,7.89251468,1763.5,1762.9,0.8144]
[1745479935587,6.144,1763.5,1763.2,5.67139292]
[1745479935781,6.144,1763.5,1763.3,5.67103784]
[1745479936008,6.144,1763.5,1763.1,5.67168749]
[1745479936518,6.144,1763.5,1763.1,5.67161627]
[1745479936823,6.144,1763.5,1763.2,5.67146152]
[1745479937226,6.144,1763.5,1763.1,6.2387779]
[1745479937406,6.144,1763.5,1763.2,5.67148224]
[1745479937786,6.144,1763.5,1763.2,5.67126993]
[1745479937984,6.144,1763.5,1763.2,5.6713784]
[1745479938424,6.144,1763.5,1763.1,6.23890091]
[1745479938606,11.81454748,1763.5,1763.1,0.56716163]
[1745479938787,5.67090678,1763.4,1763.0,5.67213593]
[1745479938987,5.67093893,1763.4,1763.0,5.67192857]
[1745479939538,11.81454933,1763.5,1763.0,5.67197293]
[1745479939836,11.81454933,1763.5,1763.0,5.67194754]
[1745479939986,11.81454933,1763.5,1762.9,5.67228887]
[1745479940225,5.67101713,1763.4,1762.9,6.23948281]
[1745479940420,5.67101713,1763.4,1763.0,5.67214145]
[1745479940623,11.81454933,1763.5,1762.7,0.7869]
[1745479940624,5.6713355,1763.3,1762.7,0.7869]
[1745479940865,5.6713355,1763.3,1762.6,5.33]
[1745479940866,5.6723785,1763.0,1762.6,5.33]
[1745479941022,6.23887956,1763.2,1762.7,5.67296337]
[1745479941228,5.67185102,1763.1,1762.6,5.6733259]
[1745479941417,0.7692,1762.9,1762.4,0.7596]
[1745479941868,0.7692,1762.9,1762.5,5.67351177]
[1745479942018,0.7692,1762.9,1762.6,5.67330698]
[1745479942223,0.7692,1762.9,1762.5,6.31690342]
[1745479942466,0.7692,1762.9,1762.5,6.31685921]
[1745479942635,0.7692,1762.9,1762.6,5.67327205]
[1745479943165,0.7692,1762.9,1762.6,5.67332833]
[1745479943539,0.7692,1762.9,1762.6,5.67322]
[1745479943734,5.33,1763.1,1762.5,0.64331118]
[1745479943941,0.7783,1763.0,1762.6,5.67323952]
[1745479944144,5.67247932,1762.9,1762.5,5.67364723]
[1745479944344,5.67247932,1762.9,1762.4,6.43348999]
[1745479944565,0.7783,1763.0,1762.3,0.56742541]
[1745479944729,0.7979,1762.6,1762.2,6.48844103]
[1745479944929,0.7979,1762.6,1762.2,7.70477414]
[1745479945157,0.7979,1762.6,1762.4,5.6739742]
[1745479945470,0.7979,1762.6,1762.3,5.67440276]
[1745479945665,0.7979,1762.6,1762.2,7.70488917]
[1745479945853,0.7979,1762.6,1762.3,5.67415033]
[1745479946224,0.7979,1762.6,1762.3,5.67440276]
[1745479946432,0.7511,1762.8,1762.5,5.67350501]
[1745479946958,5.33,1762.9,1762.6,5.6732249]
[1745479947143,5.33,1762.9,1762.5,5.67353633]
[1745479947341,5.33,1762.9,1762.5,5.67349807]
[1745479947872,0.7511,1763.0,1762.3,9.44481264]
[1745479948029,6.42336872,1763.0,1762.5,5.67345043]
[1745479948370,0.7511,1763.0,1762.6,5.67339859]
[1745479948558,0.7511,1763.0,1762.8,5.67264325]
[1745479949066,0.7511,1763.0,1762.6,5.67326323]
[1745479949271,0.7511,1763.0,1762.7,5.67300413]
[1745479949568,0.7511,1763.0,1762.7,5.67292586]
[1745479949733,11.78003083,1763.2,1762.7,6.80757086]
[1745479950242,5.67184364,1763.1,1762.7,6.80757086]
[1745479950444,5.67220255,1763.0,1762.5,6.45269744]
[1745479950647,0.8147,1762.9,1762.5,5.67359744]
[1745479950849,0.8147,1762.9,1762.6,5.67340953]
[1745479951048,0.8147,1762.9,1762.6,5.67322296]
[1745479951270,0.7518,1763.1,1762.5,5.67375886]
[1745479951497,0.7518,1763.1,1762.8,5.67277775]
[1745479951900,5.33,1763.2,1762.9,5.67221275]
[1745479952085,5.33,1763.2,1763.0,5.6720309]
[1745479952290,0.7553,1763.6,1763.0,4.43227078]
[1745479952801,0.7553,1763.6,1763.4,5.67085159]
[1745479952984,6.46429677,1763.9,1763.5,5.6704213]
[1745479953498,0.795,1763.9,1763.4,1.37588516]
[1745479953711,0.795,1763.9,1763.8,5.66957704]
[1745479954003,24.055,1764.0,1763.7,5.66988746]
[1745479954292,24.055,1764.0,1763.6,5.67015986]
[1745479954495,29.7241302,1764.0,1763.6,0.86701599]
[1745479954673,5.66927533,1763.9,1763.4,7.04650858]
[1745479954864,5.66927533,1763.9,1763.5,5.67052001]
[1745479955065,5.66927533,1763.9,1763.4,7.04651458]
[1745479955273,24.055,1764.0,1763.4,1.37588516]
[1745479955493,5.6694511,1763.9,1763.4,7.04659949]
[1745479955797,5.6694511,1763.9,1763.5,0.70465995]
[1745479955973,29.72411235,1764.0,1763.6,5.6701941]
[1745479956169,6.44136268,1764.1,1763.5,0.70465995]
[1745479956170,0.7726,1764.1,1763.5,0.70465995]
[1745479956403,0.7726,1764.1,1763.9,5.66919445]
[1745479956699,0.7726,1764.1,1763.8,5.66939997]
[1745479957296,5.66999619,1763.7,1763.5,0.70465995]
[1745479957505,5.66976683,1763.8,1763.3,5.67105675]
[1745479957669,5.66997696,1763.7,1763.2,6.47610249]
[1745479957994,0.8083,1763.6,1763.3,5.67103701]
[1745479958208,0.8083,1763.6,1763.3,6.88568319]
[1745479958379,5.66998188,1763.7,1763.3,6.88585532]
[1745479958567,12.3538403,1763.9,1763.2,0.8049]
[1745479958766,6.6845,1763.9,1763.3,5.671073]
[1745479959002,10.99773854,1763.8,1763.3,5.671073]
[1745479959297,5.66994047,1763.7,1763.3,5.671073]
[1745479959484,10.99766693,1763.8,1763.3,5.67113682]
[1745479959797,5.66992706,1763.7,1763.2,0.8049]
[1745479959997,0.809,1763.5,1763.1,5.67182182]
[1745479960213,6.47968801,1763.5,1763.0,0.782]
[1745479960502,6.47968801,1763.5,1763.0,6.45388629]
[1745479960801,5.67091138,1763.4,1763.0,7.09927492]
[1745479961159,12.15060545,1763.5,1763.0,7.09927492]
[1745479961361,6.47975537,1763.5,1763.0,1.42738863]
[1745479961710,6.47958705,1763.5,1763.1,5.67165916]
[1745479962892,0.809,1763.5,1763.0,4.46217078]
[1745479963072,0.809,1763.7,1763.3,5.67107997]
[1745479963488,0.809,1763.7,1763.3,5.67107101]
[1745479963696,0.809,1763.7,1763.1,3.0]
[1745479963879,0.809,1763.7,1763.4,5.67070742]
[1745479964082,11.77602003,1763.7,1763.3,5.6710011]
[1745479964413,5.67022846,1763.6,1763.2,5.9712893]
[1745479964707,11.77591782,1763.7,1763.3,5.67104206]
[1745479965086,6.106,1763.7,1763.3,5.67095998]
[1745479965286,11.77592386,1763.7,1763.3,5.67095998]
[1745479966112,6.106,1763.7,1763.3,5.67095998]
[1745479966298,6.106,1763.7,1763.3,6.83519097]
[1745479966510,11.775936,1763.7,1763.3,6.83519097]
[1745479967714,11.76277047,1763.7,1763.3,6.83519097]
[1745479968018,6.09283447,1763.7,1763.4,5.67082515]
[1745479968384,6.09283447,1763.7,1763.3,6.83523076]
[1745479968585,11.76273993,1763.7,1763.3,1.16423099]
[1745479968781,5.67064033,1763.5,1763.0,10.13416895]
[1745479969111,5.67040878,1763.6,1763.1,5.67178727]
[1745479969316,11.76294213,1763.7,1763.0,4.46217078]
[1745479969520,11.76285574,1763.7,1763.2,5.67119471]
[1745479969693,11.76285574,1763.7,1763.3,0.56711947]
[1745479969894,17.43302393,1763.7,1763.3,0.56711947]
[1745479970098,17.43302393,1763.7,1763.1,5.67169307]
[1745479970099,6.09283447,1763.7,1763.1,5.67162226]
[1745479970424,5.67043943,1763.6,1763.2,5.67150317]
[1745479970736,0.79583447,1763.7,1763.2,3.68017078]
[1745479971019,0.79583447,1763.7,1763.4,5.67057383]
[1745479971826,0.79583447,1763.7,1763.2,3.68017078]
[1745479972024,5.67039614,1763.6,1763.2,5.67131316]
[1745479972998,5.6708631,1763.4,1763.0,5.67200215]
[1745479974027,6.43725481,1763.5,1763.1,5.67182287]
[1745479974232,0.7667,1763.5,1763.2,5.67142394]
[1745479974905,6.43725535,1763.5,1763.1,5.67182287]
[1745479975088,6.43725535,1763.5,1763.1,6.69459445]
[1745479975285,6.43726864,1763.5,1763.1,6.69448579]
[1745479976388,0.7667,1763.5,1763.3,5.67115624]
[1745479976594,0.7667,1763.5,1763.3,5.67110896]
[1745479976817,6.0563,1763.7,1763.4,5.6708631]
[1745479977030,6.0563,1763.7,1763.3,6.80522056]
[1745479977745,6.0563,1763.7,1763.4,5.67084348]
[1745479978235,11.72627754,1763.7,1763.3,6.80523407]
[1745479978736,6.0563,1763.7,1763.1,1.84967158]
[1745479979029,5.67036559,1763.6,1763.2,5.67144291]
[1745479979235,5.67073432,1763.5,1763.0,11.34398178]
[1745479979727,5.67073432,1763.5,1763.1,5.67177731]
[1745479980499,5.67035756,1763.6,1763.1,5.67177731]
[1745479980500,11.72630531,1763.7,1763.2,5.67143945]
[1745479980724,6.0563,1763.7,1763.2,5.671352]
[1745479980922,6.0563,1763.7,1763.4,5.67086213]
[1745479981122,6.0563,1763.7,1763.3,6.23810043]
[1745479981329,11.72625145,1763.7,1763.3,6.23810043]
[1745479981900,6.0563,1763.7,1763.4,5.67077054]
[1745479982100,11.72627848,1763.7,1763.3,11.90912687]
[1745479982301,6.0563,1763.7,1763.4,6.86173586]
[1745479982502,6.0563,1763.7,1763.4,1.19091269]
[1745479982926,6.0563,1763.7,1763.5,5.6704876]
[1745479983116,6.0563,1763.7,1763.5,5.67050747]
[1745479983319,0.8313,1763.9,1763.7,5.66964385]
[1745479983518,30.48622146,1764.1,1763.7,5.66978218]
[1745479983715,24.8176,1764.1,1763.6,6.23709572]
[1745479983919,30.48621848,1764.1,1763.7,5.66972249]
[1745479984204,30.48621848,1764.1,1763.6,6.23709572]
[1745479984205,0.8116,1764.1,1763.8,5.66937646]